[Event "21st Open Gran Hotel Bali-A 2024"]
[Site "Benidorm"]
[Date "2024.11.29"]
[Round "1.18"]
[White "Vega Gutierrez, Sabrina"]
[Black "Ainsa Jimenez, Lucas"]
[Result "1-0"]
[ECO "B12"]
[WhiteElo "2385"]
[BlackElo "2026"]
[Annotator "TA"]
[PlyCount "83"]
[EventDate "2024.11.26"]
[EventType "swiss"]
[EventCountry "ESP"]
[SourceTitle "playchess.com"]
[Source "ChessBase"]
[SourceQuality "1"]
[TimeControl "5400+30"]

{[%evp 12,83,4,25,21,33,54,48,50,32,37,8,64,61,203,21,53,32,38,28,24,20,75,74,77,62,81,88,99,98,122,115,210,226,213,230,278,278,249,241,325,295,294,293,699,646,679,677,657,618,836,827,944,685,695,677,697,678,5206,1804,6404,6404,6334,6195,5751,5106,29975,29976,29979,29980,29978,29978,29982,29982]} 1. e4 {[%emt 0:00:05]} c6 {[%emt 0:00:08]} 2. d4 {[%emt 0:00:13]} d5 {[%emt 0:00:05]} 3. e5 {[%emt 0:00:04]} Bf5 {[%emt 0:00:06]} 4. Nf3 {[%emt 0:00:17]} e6 {[%emt 0:00:17]} 5. c3 {[%emt 0:00:11]} c5 {[%emt 0:00:39]} 6. Be2 {[%emt 0:00:24]} Nc6 {[%emt 0:00:36]} 7. O-O {[%emt 0:00:14]} cxd4 {[%emt 0:02:36]} 8. Nxd4 {[%emt 0:00:26]} Nxd4 {[%emt 0:00:34]} 9. cxd4 {[%emt 0:00:11] [#] Threatens to win with Qa4+.} Ne7 {[%emt 0:00:47] White is slightly better.} 10. g4 {[%emt 0:00:50]} Bg6 {[%emt 0:00:57]} 11. f4 {[%emt 0:00:22][%cal Of4f5] Strongly threatening f5!} Qd7 {[%emt 0:06:12]} (11... f5 $11) 12. Nc3 $14 {[%emt 0:01:14]} O-O-O {[%emt 0:07:06]} (12... f5 $14) 13. Bd2 $2 {[%emt 0:18:49]} (13. f5 $18 exf5 14. Nb5) 13... Kb8 $1 $11 {[%emt 0:01:49]} 14. Bb5 {[%emt 0:11:28]} Nc6 {[%emt 0:00:58]} 15. Bxc6 {[%emt 0:00:40]} bxc6 {[%emt 0:01:33][%cal Bb7c6,Bc6b5,Bb5b4][%mdl 32]} 16. Na4 {[%emt 0:01:55]} Bd3 {[%emt 0:01:12]} (16... Ka8 $11 {remains equal.}) 17. Qb3+ $16 {[%emt 0:06:27]} Bb5 {[%emt 0:00:58] Black is weak on the dark squares} 18. Nc3 $36 {[%emt 0:00:26][%mdl 2048] White has some pressure.} Qb7 {[%emt 0:00:18] White leaves nothing to chance now.} 19. Nxb5 {[%emt 0:01:17]} cxb5 {[%emt 0:02:27]} 20. f5 {[%emt 0:05:25]} Qb6 {[%emt 0:04:29]} 21. Qd3 {[%emt 0:02:45] White is more active.} a6 {[%emt 0:14:20]} (21... Rd7 $16 {might work better.} 22. Rac1 Be7) 22. a4 $18 {[%emt 0:04:14][%cal Ba2a4,Ba4a5][%mdl 32] [#] And now axb5 would win.} b4 {[%emt 0:15:56]} 23. a5 {[%emt 0:08:30]} Qa7 {[%emt 0:07:07]} 24. fxe6 {[%emt 0:00:45]} fxe6 {[%emt 0:00:22]} 25. Rf3 {[%emt 0:03:22][%cal Bf1f3,Bf3f7,Bf7d7][%mdl 32] Black must now prevent Raf1.} Be7 {[%emt 0:07:52][%cal Bf8e7,Be7c5,Bc5d4][%mdl 32]} 26. Rf7 {[%emt 0:00:54]} Rd7 {[%emt 0:00:56]} 27. Rc1 {[%emt 0:04:20][%cal Of7e7] aiming for Rxe7!} (27. Rxg7 $6 Rb7 28. h3 (28. Rxh7 $2 Rxh7 29. Kh1 Bd8 $19) 28... Bd8 29. Rxb7+ Qxb7 $16) 27... Rhd8 $2 {[%emt 0:00:51]} (27... Qb7 28. Rxg7 Ka7) 28. Rc6 {[%emt 0:01:16]} Bc5 {[%emt 0:01:35]} 29. Rxd7 {[%emt 0:13:44]} Bxd4+ {[%emt 0:00:17]} 30. Kg2 {[%emt 0:03:52]} Qxd7 {[%emt 0:04:37]} 31. Rd6 {[%emt 0:00:49]} (31. Rxa6 Qb7 32. Rxe6 Qd7 $18) 31... Qc7 {[%emt 0:07:25]} 32. Rxd8+ {[%emt 0:00:09]} ({Weaker is} 32. Rxa6 Qc4 33. Qxc4 (33. Qxh7 {leads to mate.} Qxa6 34. Kh3 Qe2 35. a6 Bxe5 36. g5 Qxh2+ 37. Kg4 Qg3+ 38. Kh5 Qh3+ 39. Kg6 Qf5+ 40. Kh5 Qxh7+ 41. Kg4 Qf5+ 42. Kh5 Rh8#) 33... dxc4 34. Bxb4 (34. Rxe6 b3 $15) 34... Bxe5 $11) (32. Qxa6 Rxd6 33. exd6 Qc2 $11) (32. Rxe6 Qc8 $16) 32... Qxd8 {[%emt 0:00:06]} 33. Qxd4 {[%emt 0:00:08]} Qxa5 {[%emt 0:00:02]} 34. Qxb4+ {[%emt 0:00:23]} Qxb4 {[%emt 0:00:10]} 35. Bxb4 {[%emt 0:00:01][%mdl 4096] Endgame. KB-KP} Kb7 {[%emt 0:00:07]} 36. Bf8 {[%emt 0:00:33]} g6 {[%emt 0:00:05][%cal Bg7g6,Bg6g5][%mdl 32]} 37. Kf3 {[%emt 0:00:16]} Kc6 {[%emt 0:00:06]} 38. Kf4 {[%emt 0:02:02]} Kb5 {[%emt 0:00:14]} 39. Kg5 {[%emt 0:04:23] White mates.} Kc4 {[%emt 0:01:21]} 40. Kf6 {[%emt 0:00:31]} d4 {[%emt 0:00:35]} 41. Kxe6 {[%emt 0:00:25]} g5 {[%emt 0:00:18]} 42. Bh6 {[%emt 0:07:10] Weighted Error Value: White=0.26 (precise) /Black=0.69.  Missed win:     	White=1     	---        Mistake:       	---       	Black=5      Inaccurate:     	---       	Black=1      OK:         	White=13    	Black=3      Best:        	---       	Black=3      Strong:       	---       	Black=1} 1-0

[Event "21st Open Gran Hotel Bali-A 2024"]
[Site "Benidorm"]
[Date "2024.11.29"]
[Round "1.19"]
[White "Bosch Jorda, Ricard"]
[Black "Trigo Urquijo, Sergio"]
[Result "0-1"]
[ECO "E43"]
[WhiteElo "2023"]
[BlackElo "2370"]
[Annotator "TA"]
[PlyCount "84"]
[EventDate "2024.11.26"]
[EventType "swiss"]
[EventCountry "ESP"]
[SourceTitle "playchess.com"]
[Source "ChessBase"]
[SourceQuality "1"]
[TimeControl "5400+30"]

{[%evp 13,84,17,25,12,35,37,33,-15,-11,-12,-10,-39,0,9,7,-18,-9,-26,-10,-11,-7,-65,-74,-71,-33,-34,-32,-66,-60,-73,-49,-150,-138,-178,-145,-144,-106,-187,-168,-275,-160,-160,-170,-166,-171,-150,-93,-150,-149,-139,-137,-208,-214,-219,-222,-334,-336,-342,-341,-339,-328,-443,-428,-437,-444,-479,-454,-685,-445,-808,-804,-2649,-2613]} 1. d4 {[%emt 0:00:06]} Nf6 {[%emt 0:00:46]} 2. c4 {[%emt 0:00:14]} e6 {[%emt 0:01:20]} 3. Nc3 {[%emt 0:00:15]} Bb4 {[%emt 0:00:53]} 4. e3 {[%emt 0:00:28]} Bxc3+ {[%emt 0:02:32]} 5. bxc3 {[%emt 0:00:10]} b6 {[%emt 0:00:14]} 6. Bd3 {[%emt 0:08:32]} Bb7 {[%emt 0:00:13]} 7. Nf3 {[%emt 0:02:25]} d6 {[%emt 0:01:24]} 8. Qe2 {[%emt 0:10:42]} Nc6 {[%emt 0:02:58]} 9. e4 {[%emt 0:12:50]} e5 {[%emt 0:02:39]} 10. dxe5 {[%emt 0:16:31]} (10. Be3 $14 {should be considered.}) 10... Nxe5 $11 {[%emt 0:04:00]} 11. Nxe5 {[%emt 0:02:19]} dxe5 {[%emt 0:00:08]} 12. c5 {[%emt 0:00:56]} Qd7 {[%emt 0:06:30]} 13. O-O {[%emt 0:09:07]} O-O {[%emt 0:08:22]} 14. Bg5 {[%emt 0:15:18]} Qc6 {[%emt 0:02:29]} 15. Rfe1 {[%emt 0:05:10]} Nd7 {[%emt 0:05:31]} 16. Bb5 {[%emt 0:05:12] A strong pair of Bishops.} Qe6 {[%emt 0:00:41]} 17. Rad1 {[%emt 0:04:33]} (17. cxb6 $11 axb6 18. f3) 17... Nxc5 $15 {[%emt 0:02:05]} 18. f3 {[%emt 0:02:59]} a6 {[%emt 0:06:24]} 19. Bc4 {[%emt 0:00:04]} Qe8 {[%emt 0:00:13]} 20. Rd2 {[%emt 0:02:04]} Bc6 $36 {[%emt 0:04:42][%mdl 2048] Black fights for an advantage.} 21. Qf2 {[%emt 0:00:33]} Bb5 {[%emt 0:01:56]} 22. Bxb5 {[%emt 0:00:29]} (22. Bd5 $15 c6 (22... Nd3 23. Qg3 $14) 23. Bb3) 22... axb5 $17 {[%emt 0:00:39]} (22... Qxb5 23. c4 Qe8 (23... Qxc4 24. Be7 $15) 24. Be3 $15) 23. Red1 {[%emt 0:00:28]} f6 {[%emt 0:01:05]} 24. Be3 {[%emt 0:00:11]} Ne6 {[%emt 0:00:14]} 25. Qe2 {[%emt 0:00:53]} (25. Rd7 $17) 25... Qc6 {[%emt 0:01:27][%cal Oa8a3]} 26. Rd7 {[%emt 0:01:01]} (26. Rb1) 26... Qc4 {[%emt 0:03:55]} (26... Qxc3 $19 27. h4 b4) 27. Qxc4 {[%emt 0:00:00]} bxc4 {[%emt 0:00:06]} 28. Re7 {[%emt 0:00:24]} Rfe8 {[%emt 0:09:31]} 29. Rdd7 {[%emt 0:00:01] [#]} Rac8 {[%emt 0:00:13]} ({Better is} 29... b5 $1 {White must now prevent ...Rxe7.} 30. Rxe8+ Rxe8) 30. g3 {[%emt 0:01:03]} (30. a4 $142) 30... Rxe7 {[%emt 0:03:17]} 31. Rxe7 {[%emt 0:00:01][%mdl 4096] Endgame KRB-KRN. Black is a pawn up.} Nd8 {[%emt 0:00:18]} 32. f4 {[%emt 0:00:58]} (32. Re8+ $17 Kf7 33. Rh8) 32... Kf8 {[%emt 0:01:04]} 33. Rd7 {[%emt 0:00:01]} Nf7 {[%emt 0:00:29]} 34. fxe5 {[%emt 0:01:01]} (34. Kg2 {was necessary.}) 34... Nxe5 $19 {[%emt 0:01:13]} 35. Rd5 {[%emt 0:00:04]} Ra8 {[%emt 0:01:25]} 36. Bf4 {[%emt 0:00:04]} Rxa2 {[%emt 0:00:45]} 37. Bxe5 {[%emt 0:00:45]} fxe5 {[%emt 0:00:06]} 38. Rxe5 {[%emt 0:00:48] KR-KR. Black is a pawn up.} Rc2 {[%emt 0:00:45]} 39. Rf5+ {[%emt 0:00:09]} Ke7 {[%emt 0:00:13]} 40. Rf3 {[%emt 0:00:32]} (40. Rh5 $142) 40... c5 {[%emt 0:00:15]} 41. h3 {[%emt 0:01:06]} (41. Kf1 $142) 41... b5 {[%emt 0:00:22]} 42. Rf5 {[%emt 0:00:29]} b4 {[%emt 0:01:20]} 0-1

[Event "21st Open Gran Hotel Bali-A 2024"]
[Site "Benidorm"]
[Date "2024.11.29"]
[Round "1.20"]
[White "Prado Lobo, Jonas"]
[Black "Sukhodolskyi, Oleksii"]
[Result "1-0"]
[ECO "A06"]
[WhiteElo "2360"]
[BlackElo "2023"]
[Annotator "TA"]
[PlyCount "125"]
[EventDate "2024.11.26"]
[EventType "swiss"]
[EventCountry "ESP"]
[SourceTitle "playchess.com"]
[Source "ChessBase"]
[SourceQuality "1"]
[TimeControl "5400+30"]

{[%evp 9,125,20,45,49,58,33,32,44,51,54,53,6,11,-12,0,0,0,6,12,24,39,10,34,39,35,0,0,5,0,0,105,104,102,116,110,102,100,110,116,117,119,112,118,121,108,100,147,151,113,80,71,79,163,162,144,129,158,68,75,76,173,67,166,175,151,168,167,167,332,231,826,1039,1052,995,918,808,906,862,894,851,810,803,29964,29968,29969,29968,29972,29974,29972,29970,29971,29971,29988,29980,29980,29973,29973,29974,29974,29975,29975,29975,29975,29976,29977,29975,29978,29978,29976,29977,29981,29982,29981,29982,29988,29989,29991,29992]} 1. Nf3 {[%emt 0:00:06]} d5 {[%emt 0:00:39]} 2. e3 {[%emt 0:00:25]} Bf5 {[%emt 0:01:02]} 3. c4 {[%emt 0:00:50]} e6 {[%emt 0:03:58]} 4. cxd5 {[%emt 0:04:15]} exd5 {[%emt 0:00:36]} 5. Qb3 {[%emt 0:01:08]} b6 {[%emt 0:16:46]} 6. Nd4 {[%emt 0:04:59]} Qd7 {[%emt 0:00:52]} 7. Nc3 {[%emt 0:16:27]} Nf6 {[%emt 0:02:31]} 8. Nxf5 {[%emt 0:20:40]} Qxf5 {[%emt 0:00:07]} 9. Be2 {[%emt 0:01:59][%cal Og2g4]} c6 {[%emt 0:04:27]} 10. Qa4 {[%emt 0:07:23]} (10. O-O $14) 10... Qe6 {[%emt 0:25:26]} 11. b3 {[%emt 0:08:05]} Nbd7 {[%emt 0:01:53]} 12. O-O {[%emt 0:06:28]} Nc5 {[%emt 0:06:48]} 13. Qd4 {[%emt 0:03:48]} Bd6 {[%emt 0:01:14]} 14. Bb2 {[%emt 0:03:50]} h5 {[%emt 0:08:52]} 15. f4 {[%emt 0:01:23]} Qf5 {[%emt 0:01:42]} 16. Rac1 {[%emt 0:02:45]} Rd8 {[%emt 0:06:06]} 17. Na4 {[%emt 0:02:39][%cal Ra4c5]} O-O $1 {[%emt 0:03:07]} 18. Nxc5 {[%emt 0:00:12]} Bxc5 {[%emt 0:00:09]} 19. Qe5 {[%emt 0:03:11]} Qxe5 {[%emt 0:01:34]} (19... Qh7 $11) 20. fxe5 $16 {[%emt 0:00:36]} (20. Bxe5 $6 d4 $11) 20... Ne4 {[%emt 0:00:47]} 21. d4 $36 {[%emt 0:01:06][%mdl 2048] White is really pushing.} (21. Bxh5 Nxd2 22. Rfe1 Ne4 $14) 21... Bb4 {[%emt 0:00:32]} 22. Rxc6 {[%emt 0:09:15]} Bd2 {[%emt 0:02:13] ...Rc8 is the strong threat.} 23. Bc1 {[%emt 0:00:00]} (23. Bxh5 Bxe3+ 24. Kh1 Nf2+ 25. Rxf2 Bxf2 $11) 23... Rc8 {[%emt 0:03:03]} 24. Rxc8 $1 {[%emt 0:00:00]} Rxc8 {[%emt 0:00:10]} 25. Bxd2 {[%emt 0:00:00]} Nxd2 {[%emt 0:00:09][%mdl 4096] Endgame KRB-KRN. White is a pawn up.} 26. Rd1 {[%emt 0:00:00]} Rc2 {[%emt 0:00:34]} 27. Bxh5 {[%emt 0:00:10]} Rxa2 {[%emt 0:00:19]} (27... b5 $142) 28. Rc1 $1 {[%emt 0:00:44]} g6 {[%emt 0:00:15]} 29. Bf3 {[%emt 0:00:43]} Nxf3+ {[%emt 0:00:43]} 30. gxf3 {[%emt 0:00:01] KR-KR. White is a pawn up.} Rd2 {[%emt 0:01:58]} (30... Re2 $16) 31. Rc8+ $18 {[%emt 0:00:07]} Kg7 {[%emt 0:01:20]} 32. Rc7 {[%emt 0:00:01][%cal Oe5e6]} Re2 {[%emt 0:05:38]} 33. e6 {[%emt 0:01:48]} (33. e4 $16 dxe4 34. d5 (34. Rxa7 exf3 35. h3 g5 $11)) 33... Rxe3 {[%emt 0:00:04]} 34. Rxf7+ {[%emt 0:00:05]} (34. Rxa7 Rxe6 (34... Rxf3 35. Rb7 $11) 35. Kf2 Rc6 $11) 34... Kg8 {[%emt 0:00:04] [#]} (34... Kh6 $16) 35. Rxa7 {[%emt 0:00:28]} (35. Kf2 $1 $18 {[%cal Rf2e3]} Rxe6 36. Rxa7) 35... Rxe6 {[%emt 0:01:39]} ({Black should play} 35... Rxf3 $14 36. Rd7 Re3) 36. Kf2 {[%emt 0:00:03]} Rc6 {[%emt 0:00:33]} 37. Rb7 {[%emt 0:00:01] White is more active.} Rc2+ {[%emt 0:00:28]} 38. Kg3 {[%emt 0:00:01]} Rc6 $2 {[%emt 0:00:39]} (38... Rd2 {keeps fighting.} 39. Rxb6 Kf7) 39. Kg4 {[%emt 0:01:09] Threatens to win with Kg5.} Rd6 $2 {[%emt 0:00:30]} (39... Rc3 40. Rxb6 Kf7) 40. h4 {[%emt 0:00:11]} Kf8 {[%emt 0:00:11]} 41. Kg5 {[%emt 0:00:46]} Re6 {[%emt 0:00:49]} 42. f4 {[%emt 0:00:19][%cal Bf3f4,Bf4f5][%mdl 32]} Kg8 {[%emt 0:00:29]} 43. Rd7 {[%emt 0:00:29]} Re3 {[%emt 0:00:32][%cal Be6e3,Be3g3,Bg3b3,Bb3b1,Bb1d1,Bd1d7,Bd7a7,Ba7a6][%mdl 32]} 44. Kxg6 {[%emt 0:01:10] Rd8+ would kill now.} Rg3+ {[%emt 0:00:06]} 45. Kf6 {[%emt 0:01:28]} Rxb3 {[%emt 0:00:07]} 46. Rxd5 {[%emt 0:00:10]} b5 {[%emt 0:00:04][%cal Bb6b5,Bb5b4][%mdl 32]} 47. f5 {[%emt 0:00:20]} b4 {[%emt 0:00:09]} 48. Rb5 {[%emt 0:00:33]} Rb1 {[%emt 0:00:58]} 49. d5 {[%emt 0:00:15]} b3 {[%emt 0:00:05]} 50. d6 {[%emt 0:00:19]} (50. Rb8+ Kh7 51. Kf7 b2 $18) 50... b2 {[%emt 0:00:04]} 51. d7 {[%emt 0:02:20]} Rd1 {[%emt 0:00:05]} 52. Rxb2 {[%emt 0:00:06]} Rxd7 {[%emt 0:00:05]} 53. Rb8+ {[%emt 0:00:15]} Kh7 {[%emt 0:00:12]} 54. Ke6 {[%emt 0:00:27]} Ra7 {[%emt 0:00:15]} 55. Rd8 {[%emt 0:00:57]} Ra6+ {[%emt 0:00:22]} 56. Rd6 {[%emt 0:00:19]} Ra4 {[%emt 0:02:10]} 57. Kf7 {[%emt 0:00:50]} Rxh4 {[%emt 0:02:12]} 58. Rd1 {[%emt 0:00:00]} Kh6 {[%emt 0:00:28]} 59. f6 {[%emt 0:00:01]} Ra4 {[%emt 0:00:25] [#]} 60. Rh1+ $1 {[%emt 0:00:19]} Kg5 {[%emt 0:00:04]} 61. Kg7 {[%emt 0:00:28]} Rg4 {[%emt 0:01:09]} 62. f7 {[%emt 0:00:12]} Kf5+ {[%emt 0:00:30]} 63. Kh7 {[%emt 0:00:19]} 1-0